fUSD/lending_fUSD_20250620
["ID","MTS","AMOUNT","RATE_DAILY","PERIOD"]
[366657325,1750385432404,-150.0,0.00025593,4]
[366657326,1750385432416,-150.0,0.00025647,4]
[366657327,1750385432427,-150.0,0.00025647,4]
[366657329,1750385432438,-150.0,0.000257,4]
[366657331,1750385432450,-150.0,0.00025733,4]
[366657333,1750385432461,-150.0,0.00025746,4]
[366657335,1750385432472,-150.0,0.00025746,4]
[366657337,1750385432482,-250.0,0.0002579,2]
[366657339,1750385432493,-250.0,0.0002579,2]
[366657341,1750385432504,-150.0,0.00025807,4]
[366657344,1750385432516,-150.0,0.00025807,4]
[366657345,1750385432537,-150.0,0.0002582,4]
[366657348,1750385432549,-370.2,0.00025864,2]
[366657350,1750385432560,-150.0,0.00025878,4]
[366657352,1750385432570,-151.0,0.0002589,7]
[366657354,1750385432580,-150.0,0.00025907,4]
[366657356,1750385432590,-150.0,0.00025913,4]
[366657358,1750385432601,-2615.00766484,0.00025934,14]
[366657360,1750385432611,-150.0,0.00025944,4]
[366657362,1750385432622,-250.0,0.00025957,2]
[366657364,1750385432632,-150.0,0.00025993,4]
[366657366,1750385432643,-275.14849785,0.00026,3]
[366657368,1750385432654,-275.14849785,0.00026,4]
[366657370,1750385432665,-150.0,0.0002602,4]
[366657372,1750385432676,-150.0,0.0002602,4]
[366657374,1750385432687,-163.78,0.00026021,2]
[366657376,1750385432698,-150.0,0.0002608,4]
[366657379,1750385432709,-200.0,0.00026111,2]
[366657381,1750385432719,-150.0,0.00026126,4]
[366657383,1750385432730,-150.0,0.00026142,4]
[366657384,1750385432740,-150.0,0.00026142,4]
[366657385,1750385432750,-150.0,0.00026166,4]
[366657386,1750385432761,-2586.15,0.00026178,2]
[366657388,1750385432771,-150.0,0.00026179,2]
[366657390,1750385432782,-150.0,0.00026233,4]
[366657391,1750385432792,-150.0,0.00026233,4]
[366657392,1750385432803,-150.0,0.00026253,4]
[366657393,1750385432813,-2120.98700434,0.00026279,14]
[366657394,1750385432827,-494.0206605,0.00026279,14]
[366657395,1750385432838,-244.07608072,0.00026283,2]
[366657397,1750385432936,-924.677146,0.00026283,2]
[366657399,1750385432948,-1499.21515664,0.00026283,2]
[366657403,1750385432977,-6360.30161664,0.00026283,2]
[366657406,1750385432988,-666.0,0.00026309,2]
[366657408,1750385432998,-150.0,0.0002634,4]
[366657410,1750385433009,-150.0,0.0002634,4]
[366657412,1750385433019,-150.0,0.0002634,4]
[366657414,1750385433029,-150.0,0.0002634,4]
[366657416,1750385433039,-150.0,0.0002634,4]
[366657418,1750385433049,-797.62,0.00026341,2]
[366657420,1750385433060,-150.0,0.00026361,2]
[366657422,1750385433072,-200.0,0.00026396,7]
[366657424,1750385433082,-150.0,0.00026426,4]
[366657426,1750385433093,-276.71174688,0.00026443,2]
[366657428,1750385433104,-150.0,0.00026446,4]
[366657430,1750385433115,-150.0,0.00026446,4]
[366657432,1750385433126,-319.53,0.00026498,120]
[366657434,1750385433137,-198.70106771,0.000265,2]
[366657436,1750385433147,-324.85150215,0.000265,5]
[366657438,1750385433158,-194.80427083,0.000265,2]
[366657440,1750385433169,-600.0,0.000265,7]
[366657442,1750385433180,-253.09,0.000265,4]
[366657444,1750385433190,-324.85150215,0.000265,7]
[366657446,1750385433201,-1000.0,0.00026512,2]
[366657448,1750385433212,-150.0,0.00026513,4]
[366657451,1750385433223,-150.0,0.00026538,4]
[366657453,1750385433233,-150.0,0.00026538,4]
[366657455,1750385433244,-150.0,0.00026553,4]
[366657457,1750385433255,-203.0,0.00026558,8]
[366657459,1750385433266,-150.0,0.000266,4]
[366657461,1750385433278,-1000.0,0.00026603,2]
[366657463,1750385433289,-2615.00766484,0.00026624,15]
[366657465,1750385433299,-150.0,0.0002666,4]
[366657467,1750385433311,-150.0,0.0002666,4]
[366657469,1750385433321,-167.36,0.00026681,2]
[366657471,1750385433331,-150.0,0.00026686,4]
[366657473,1750385433342,-1957.856,0.00026709,2]
[366657475,1750385433354,-151.0,0.00026709,2]
[366657478,1750385433365,-500.0,0.00026709,2]
[366657480,1750385433376,-500.0,0.00026709,2]
[366657482,1750385433387,-571.93225272,0.00026709,2]
[366657484,1750385433398,-677.81171754,0.00026709,2]
[366657486,1750385433409,-151.0,0.00026709,2]
[366657488,1750385433421,-285.76947837,0.00026709,2]
[366657490,1750385433433,-207.4,0.00026709,2]
[366657492,1750385433443,-150.0,0.00026736,4]
[366657494,1750385433455,-2030.296672,0.00026764,2]
[366657496,1750385433466,-150.0,0.00026766,4]
[366657498,1750385433476,-150.0,0.00026773,4]
[366657500,1750385433487,-150.0,0.00026802,4]
[366657501,1750385433498,-1399.69434263,0.00026819,2]
[366657502,1750385433509,-315.63132535,0.00026826,2]
[366657503,1750385433520,-150.0,0.00026837,2]
[366657504,1750385433531,-150.0,0.0002686,4]
[366657505,1750385433542,-241.0,0.00026871,2]
[366657506,1750385433552,-150.0,0.00026871,2]
[366657507,1750385433563,-150.0,0.00026873,4]
[366657508,1750385433574,-150.0,0.00026873,4]
[366657509,1750385433586,-150.0,0.00026934,4]
[366657510,1750385433596,-150.0,0.00026934,4]
[366657511,1750385433607,-150.0,0.00026946,4]
[366657512,1750385433617,-2615.00766484,0.00026969,16]
[366657513,1750385433629,-150.0,0.0002698,4]
[366657514,1750385433640,-150.0,0.00027033,4]
[366657515,1750385433651,-150.0,0.00027033,4]
[366657516,1750385433662,-420.0,0.00027033,2]
[366657517,1750385433673,-420.0,0.00027033,2]
[366657518,1750385433684,-150.0,0.00027086,4]
[366657519,1750385433696,-150.0,0.00027086,4]
[366657520,1750385433707,-150.0,0.0002712,4]
[366657521,1750385433717,-150.0,0.00027132,4]
[366657522,1750385433728,-1680.0,0.00027156,2]
[366657523,1750385433739,-253.09,0.00027156,2]
[366657524,1750385433750,-600.0,0.00027156,2]
[366657525,1750385433760,-253.09,0.00027156,2]
[366657526,1750385433770,-600.0,0.00027156,2]
[366657527,1750385433781,-253.09,0.00027156,2]
[366657528,1750385433791,-152.0,0.00027185,7]
[366657529,1750385433802,-150.0,0.00027193,4]
[366657530,1750385433813,-150.0,0.00027206,4]
[366657531,1750385433824,-150.0,0.00027228,2]
[366657532,1750385433835,-301.0,0.00027229,2]
[366657533,1750385433846,-965.0,0.0002723,2]
[366657534,1750385433856,-8563.19,0.0002725,5]
[366657535,1750385433866,-168.0,0.00027256,2]
[366657536,1750385433877,-500.0,0.00027284,2]
[366657537,1750385433887,-500.0,0.00027284,2]
[366657538,1750385433898,-150.0,0.00027284,2]
[366657539,1750385433909,-500.0,0.00027284,2]
[366657540,1750385433920,-150.0,0.00027284,2]
[366657541,1750385433930,-470.0,0.00027284,2]
[366657542,1750385433941,-150.0,0.00027284,2]
[366657543,1750385433952,-159.33271614,0.00027284,2]
[366657544,1750385433963,-500.0,0.00027284,2]
[366657545,1750385433974,-805.0,0.00027284,2]
[366657546,1750385433985,-150.0,0.00027284,2]
[366657547,1750385433995,-150.0,0.00027284,2]
[366657548,1750385434006,-150.0,0.00027293,4]
[366657549,1750385434018,-150.0,0.00027299,4]
[366657550,1750385434028,-150.0,0.00027299,4]
[366657551,1750385434039,-4385.62248011,0.000273,2]
[366657552,1750385434096,-37227.15693423,0.000273,2]
[366657553,1750385434107,-500.0,0.00027311,2]
[366657554,1750385434118,-500.0,0.00027311,2]
[366657555,1750385434129,-500.0,0.00027311,2]
[366657556,1750385434140,-470.0,0.00027311,2]
[366657557,1750385434151,-150.0,0.00027311,2]
[366657558,1750385434162,-500.0,0.00027311,2]
[366657559,1750385434175,-805.0,0.00027311,2]
[366657560,1750385434185,-153.37686618,0.00027311,2]
[366657561,1750385434196,-164.16063619,0.00027311,2]
[366657562,1750385434206,-2615.00766484,0.00027314,16]
[366657563,1750385434217,-150.0,0.0002733,4]
[366657564,1750385434228,-150.0,0.0002733,4]
[366657565,1750385434240,-602.4291833,0.00027339,2]
[366657566,1750385434250,-500.0,0.00027339,2]
[366657567,1750385434261,-500.0,0.00027339,2]
[366657568,1750385434274,-470.0,0.00027339,2]
[366657569,1750385434284,-150.0,0.00027339,2]
[366657570,1750385434297,-309.05602731,0.00027339,2]
[366657571,1750385434317,-190.94397269,0.00027339,2]
[366657572,1750385434328,-615.14856894,0.00027339,2]
[366657573,1750385434345,-189.85143106,0.00027339,2]
[366657574,1750385434362,-171.77830979,0.00027349,2]
[366657575,1750385434374,-272.52451225,0.00027359,2]
[366657580,1750385437955,-600.0,0.00027156,2]
[366657581,1750385437965,-253.09,0.00027156,2]
[366657582,1750385437975,-600.0,0.00027156,2]
[366657583,1750385437985,-109.51042115,0.00027156,2]
[366657584,1750385437997,-143.57957885,0.00027156,2]
[366657585,1750385438007,-600.0,0.00027156,2]
[366657586,1750385438017,-253.09,0.00027156,2]
[366657587,1750385438026,-6.63905782,0.00027359,2]
[366657588,1750385438036,-350.0,0.00027366,2]
[366657589,1750385438046,-167.59460914,0.00027366,2]
[366657590,1750385438056,-139.79675419,0.00027366,2]
[366657591,1750385438067,-250.55606124,0.00027366,2]
[366657592,1750385438144,-79.64718457,0.00027366,2]
[366657593,1750385438154,-151.8979569,0.00027366,2]
[366657594,1750385438164,-500.0,0.00027366,2]
[366657595,1750385438174,-805.0,0.00027366,2]
[366657596,1750385438184,-192.54860248,0.0002737,2]
[366657597,1750385438193,-500.0,0.0002737,2]
[366657598,1750385438202,-500.0,0.0002737,2]
[366657599,1750385438211,-198.78059578,0.0002737,2]
[366657600,1750385438545,-500.0,0.0002737,2]
[366657601,1750385438557,-500.0,0.0002737,2]
[366657602,1750385438569,-157.06188901,0.0002737,2]
[366657603,1750385438579,-500.0,0.0002737,2]
[366657604,1750385438590,-150.0,0.0002737,2]
[366657605,1750385438600,-500.0,0.0002737,2]
[366657606,1750385438610,-150.0,0.0002737,2]
[366657607,1750385438620,-150.0,0.0002737,2]
[366657608,1750385438630,-150.0,0.0002737,2]
[366657609,1750385438640,-500.0,0.0002737,2]
[366657610,1750385438651,-500.0,0.0002737,2]
[366657611,1750385438661,-150.0,0.0002737,2]
[366657612,1750385438671,-500.0,0.0002737,2]
[366657613,1750385438680,-1000.0,0.00027376,2]
[366657614,1750385438690,-150.0,0.00027378,2]
[366657615,1750385438699,-150.0,0.00027379,4]
[366657616,1750385438708,-324.1424,0.00027381,2]
[366657617,1750385438718,-300.0,0.00027389,2]
[366657618,1750385438728,-150.0,0.0002739,2]
[366657619,1750385438738,-166.01455637,0.00027393,2]
[366657620,1750385438750,-113.14901369,0.00027393,2]
[366657621,1750385438760,-470.0,0.00027394,2]
[366657622,1750385438769,-500.0,0.00027394,2]
[366657623,1750385438779,-111.65848975,0.00027394,2]
[366657624,1750385438799,-693.34151025,0.00027394,2]
[366657625,1750385438808,-172.54632805,0.00027395,2]
[366657626,1750385438818,-100.32323037,0.00027395,2]
[366657627,1750385438860,-105.20588522,0.00027395,2]
[366657628,1750385438871,-162.75854776,0.00027395,2]
[366657629,1750385438880,-2003.41968587,0.00027395,2]
[366657630,1750385438890,-195.83035598,0.00027395,2]
[366657631,1750385438900,-1000.0,0.00027397,8]
[366657632,1750385438910,-1000.0,0.00027397,8]
[366657633,1750385438919,-559.27798496,0.00027397,8]
[366657634,1750385438928,-500.0,0.00027397,2]
[366657635,1750385438938,-500.0,0.00027397,2]
[366657636,1750385438948,-500.0,0.00027397,2]
[366657637,1750385438958,-500.0,0.00027397,2]
[366657638,1750385438969,-500.0,0.00027397,2]
[366657639,1750385438979,-500.0,0.00027397,2]
[366657640,1750385438988,-150.0,0.00027397,2]
[366657641,1750385438998,-500.0,0.00027397,2]
[366657642,1750385439007,-150.0,0.00027397,2]
[366657643,1750385439017,-150.0,0.00027397,2]
[366657644,1750385439028,-150.0,0.00027397,2]
[366657645,1750385439037,-500.0,0.00027397,2]
[366657646,1750385439047,-500.0,0.00027397,2]
[366657647,1750385439056,-150.0,0.00027397,2]
[366657648,1750385439066,-500.0,0.00027397,2]
[366657649,1750385439076,-150.0,0.00027406,7]
[366657650,1750385439085,-470.0,0.00027421,2]
[366657651,1750385439095,-500.0,0.00027421,2]
[366657652,1750385439104,-805.0,0.00027421,2]
[366657653,1750385439114,-500.0,0.00027424,2]
[366657654,1750385439124,-500.0,0.00027425,2]
[366657655,1750385439133,-500.0,0.00027425,2]
[366657656,1750385439143,-81.60714021,0.00027425,2]
[366657671,1750385440036,-528.2892623,0.00027156,2]
[366657672,1750385440048,-71.7107377,0.00027156,2]
[366657673,1750385440058,-253.09,0.00027156,2]
[366657674,1750385440067,-418.39285979,0.00027425,2]
[366657675,1750385440077,-566.63256558,0.00027425,2]
[366657676,1750385440086,-500.0,0.00027425,2]
[366657677,1750385440096,-150.0,0.00027425,2]
[366657678,1750385440106,-500.0,0.00027425,2]
[366657679,1750385440115,-150.0,0.00027425,2]
[366657680,1750385440125,-150.0,0.00027425,2]
[366657681,1750385440134,-150.0,0.00027425,2]
[366657682,1750385440144,-212.04187283,0.00027425,2]
[366657683,1750385440156,-287.95812717,0.00027425,2]
[366657684,1750385440165,-211.96842198,0.00027425,2]
[366657685,1750385440177,-152.1873958,0.00027425,2]
[366657686,1750385440187,-256.49758292,0.00027425,2]
[366657687,1750385440196,-279.16357006,0.00027428,2]
[366657688,1750385440206,-196.77299689,0.00027439,2]
[366657689,1750385440215,-150.0,0.00027442,2]
[366657690,1750385440225,-470.0,0.00027448,2]
[366657691,1750385440235,-500.0,0.00027448,2]
[366657692,1750385440246,-805.0,0.00027448,2]
[366657693,1750385440255,-150.0,0.00027449,2]
[366657694,1750385440265,-490.0,0.00027449,4]
[366657695,1750385440274,-490.0,0.00027449,4]
[366657696,1750385440284,-490.0,0.00027449,4]
[366657697,1750385440294,-500.0,0.00027449,4]
[366657698,1750385440303,-490.0,0.00027449,4]
[366657699,1750385440314,-490.0,0.00027449,2]
[366657700,1750385440324,-492.15882728,0.00027449,2]
[366657701,1750385440334,-490.0,0.00027449,4]
[366657702,1750385440344,-87.14964769,0.00027449,2]
[366657704,1750385440364,-403.36174763,0.00027449,2]
[366657706,1750385440373,-490.0,0.00027449,4]
[366657708,1750385440383,-184.1290493,0.00027449,4]
[366657710,1750385440393,-500.0,0.00027449,2]
[366657711,1750385440403,-500.0,0.00027449,2]
[366657713,1750385440412,-500.0,0.00027449,2]
[366657715,1750385440423,-490.0,0.00027449,4]
[366657716,1750385440433,-1175.83,0.00027449,4]
[366657717,1750385440443,-490.0,0.00027449,4]
[366657718,1750385440452,-490.0,0.00027449,2]
[366657719,1750385440462,-490.0,0.00027449,4]
[366657720,1750385440471,-23483.20918819,0.00027449,4]
[366657721,1750385440483,-15111.87505472,0.00027449,4]
[366657722,1750385440494,-28.47041771,0.00027449,4]
[366657723,1750385440504,-23524.58609324,0.00027449,4]
[366657724,1750385440620,-346667.61071392,0.00027449,4]
[366657725,1750385442117,202.0,0.00022545,2]
[366657736,1750385445397,151.0,0.00022951,2]
[366657737,1750385445537,151.0,0.00022951,2]
[366657745,1750385446046,151.0,0.00022951,2]
[366657746,1750385446096,-600.0,0.00027156,2]
[366657747,1750385446106,-253.09,0.00027156,2]
[366657748,1750385446115,-600.0,0.00027156,2]
[366657749,1750385446125,-253.09,0.00027156,2]
[366657750,1750385446135,-600.0,0.00027156,2]
[366657751,1750385446145,-253.09,0.00027156,2]
[366657752,1750385446155,-490.0,0.00027449,4]
[366657753,1750385446166,-492.38516532,0.00027449,4]
[366657754,1750385446176,-490.0,0.00027449,4]
[366657755,1750385446186,-7111.50483468,0.00027449,4]
[366657756,1750385471489,202.0,0.00022545,2]
[366657757,1750385560059,524.0,0.000222,2]
[366657760,1750385649718,151.0,0.00022945,2]
[366657762,1750385666247,151.0,0.00022974,2]
[366657763,1750385682943,151.0,0.00023047,2]
[366657764,1750385699391,151.0,0.00023089,2]
[366657765,1750385703163,2809.55608072,0.00016659,2]
[366657767,1750385765016,151.0,0.00023122,2]
[366657768,1750385781427,151.0,0.00022974,2]
[366657769,1750385787002,151.0,0.00022967,2]
[366657770,1750385789094,2841.36,0.00025,120]
[366657771,1750385798127,151.0,0.00022954,2]
[366657772,1750385803497,151.0,0.00022913,2]
[366657773,1750385814854,151.0,0.00022842,2]
[366657774,1750385831301,151.0,0.00022865,2]
[366657775,1750385847483,151.0,0.00022887,2]
[366657776,1750385865230,151.0,0.00022923,2]
[366657777,1750385880643,151.0,0.00022973,2]
[366657778,1750385897375,3623.3288888,0.0002,2]
[366657779,1750385924022,187.27,0.00016712,2]
[366657780,1750385986825,802.0,0.00025,120]
[366657781,1750386004622,7188.9103772,0.00017177,2]
[366657997,1750386436490,506.0,0.00025,120]
[366657998,1750386454125,150.0,0.0002313,2]
[366658001,1750386559638,161.24,0.00013699,2]
[366658003,1750386621316,10182.846957,0.000231,2]
[366658007,1750386632083,-200.0,0.00023896,2]
[366658008,1750386632093,-221.31963355,0.00024436,2]
[366658009,1750386632103,-153.28036645,0.00024534,2]
[366658010,1750386632138,-1046.71963355,0.00024534,2]
[366658011,1750386632148,-300.0,0.0002466,2]
[366658012,1750386632157,-300.0,0.00024731,2]
[366658013,1750386632167,-150.0,0.00024732,4]
[366658014,1750386632177,-150.0,0.00024732,4]
[366658015,1750386632186,-150.0,0.00024732,4]
[366658016,1750386632197,-63.9212907,0.00024732,4]
[366658017,1750386632209,-86.0787093,0.00024732,4]
[366658018,1750386632219,-150.0,0.00024732,4]
[366658019,1750386632229,-150.0,0.00024732,4]
[366658020,1750386632241,-150.0,0.00024732,4]
[366658021,1750386632250,-150.0,0.00024732,4]
[366658022,1750386632260,-150.0,0.00024732,4]
[366658023,1750386632270,-150.0,0.00024732,4]
[366658024,1750386632279,-150.0,0.00024732,4]
[366658025,1750386632289,-95.77261111,0.00024732,4]
[366658026,1750386632301,-54.22738889,0.00024732,4]
[366658027,1750386632310,-524.36401339,0.00024778,2]
[366658028,1750386632326,-2169.14598661,0.00024778,2]
[366658029,1750386632336,-150.0,0.00024804,4]
[366658030,1750386632345,-150.0,0.0002482,4]
[366658031,1750386632355,-200.0,0.00024822,3]
[366658032,1750386632364,-200.0,0.0002485,2]
[366658033,1750386632374,-150.0,0.00024876,4]
[366658034,1750386632383,-150.0,0.00024893,4]
[366658035,1750386632393,-2357.36737096,0.000249,12]
[366658036,1750386632402,-150.0,0.00024909,4]
[366658037,1750386632412,-150.0,0.00024915,4]
[366658038,1750386632421,-150.0,0.00024948,4]
[366658039,1750386632430,-150.0,0.00024997,4]
[366658040,1750386632440,-36.95442888,0.00024999,2]
[366658041,1750386632452,-261.04557112,0.00024999,2]
[366658042,1750386632461,-1000.0,0.00025,2]
[366658043,1750386632471,-1000.0,0.00025,2]
[366658044,1750386632481,-467.54701808,0.00025,2]
[366658046,1750386632511,-532.45298192,0.00025,2]
[366658047,1750386632520,-265.87500626,0.00025,2]
[366658048,1750386632533,-734.12499374,0.00025,2]
[366658049,1750386632543,-1000.0,0.00025,2]
[366658050,1750386632554,-500.0,0.00025014,2]
[366658051,1750386632564,-150.0,0.00025021,4]
[366658053,1750386632574,-150.0,0.00025055,4]
[366658055,1750386632583,-150.0,0.00025086,4]
[366658057,1750386632593,-150.0,0.00025093,4]
[366658059,1750386632603,-150.0,0.00025098,4]
[366658061,1750386632612,-150.0,0.00025124,4]
[366658063,1750386632622,-150.0,0.00025124,4]
[366658064,1750386632632,-150.0,0.00025165,4]
[366658065,1750386632642,-150.0,0.00025175,4]
[366658066,1750386632652,-300.0,0.00025213,2]
[366658067,1750386632663,-150.0,0.00025216,4]
[366658068,1750386632672,-150.0,0.00025238,4]
[366658069,1750386632682,-1821.48212117,0.00025245,12]
[366658070,1750386632694,-415.87469936,0.00025245,12]
[366658071,1750386632722,-120.0105502,0.00025245,12]
[366658072,1750386632732,-150.0,0.00025263,4]
[366658073,1750386632741,-150.0,0.00025281,4]
[366658074,1750386632750,-150.0,0.0002531,4]
[366658075,1750386632760,-150.0,0.00025352,4]
[366658076,1750386632771,-145.14877055,0.00025378,4]
[366658077,1750386632800,-4.85122945,0.00025378,4]
[366658078,1750386632810,-150.0,0.00025382,4]
[366658079,1750386632821,-150.0,0.00025441,4]
[366658080,1750386632831,-150.0,0.00025455,4]
[366658081,1750386632841,-150.0,0.00025464,4]
[366658082,1750386632853,-150.0,0.00025517,4]
[366658083,1750386632863,-150.0,0.00025517,4]
[366658084,1750386632872,-150.0,0.00025527,4]
[366658085,1750386632882,-150.0,0.00025529,4]
[366658086,1750386632891,-500.0,0.00025534,2]
[366658087,1750386632901,-150.0,0.0002554,4]
[366658088,1750386632910,-616.37940651,0.0002559,13]
[366658089,1750386632922,-383.12875825,0.0002559,13]
[366658090,1750386633066,-764.0,0.0002559,13]
[366658093,1750386638163,-593.85920597,0.0002559,13]
[366658094,1750386638173,-150.0,0.00025599,4]
[366658095,1750386638183,-150.0,0.00025618,4]
[366658096,1750386638193,-150.0,0.00025647,4]
[366658097,1750386638203,-135.08833863,0.00025647,4]
[366658120,1750386640614,-14.91166137,0.00025647,4]
[366658121,1750386640625,-150.0,0.00025647,4]
[366658122,1750386640635,-150.0,0.00025672,4]
[366658123,1750386640646,-150.0,0.00025701,4]
[366658124,1750386640655,-150.0,0.00025707,4]
[366658125,1750386640665,-150.0,0.00025744,4]
[366658126,1750386640675,-200.0,0.00025748,4]
[366658127,1750386640686,-150.0,0.00025795,4]
[366658128,1750386640696,-150.0,0.00025816,4]
[366658129,1750386640707,-168.0,0.00025822,2]
[366658130,1750386640717,-150.0,0.00025831,4]
[366658131,1750386640728,-150.0,0.00025863,4]
[366658132,1750386640738,-150.0,0.00025884,4]
[366658133,1750386640748,-150.0,0.00025889,4]
[366658134,1750386640758,-2500.0,0.00025906,2]
[366658136,1750386640769,-150.0,0.00025909,4]
[366658138,1750386640781,-150.0,0.00025909,4]
[366658140,1750386640791,-2357.36737073,0.00025934,14]
[366658142,1750386640801,-160.92,0.00025939,120]
[366658143,1750386640810,-150.0,0.00025961,4]
[366658144,1750386640821,-168.0,0.00025966,2]
[366658145,1750386640831,-150.0,0.00025973,4]
[366658146,1750386640842,-150.0,0.00026014,4]
[366658147,1750386640854,-150.0,0.00026025,4]
[366658148,1750386640864,-199.19,0.00026027,2]
[366658149,1750386640874,-150.0,0.00026032,2]
[366658150,1750386640883,-150.0,0.00026033,4]
[366658151,1750386640894,-150.0,0.00026061,4]
[366658152,1750386640903,-526.45,0.00026063,2]
[366658153,1750386640914,-171.23,0.00026071,2]
[366658154,1750386640923,-185.1,0.00026071,2]
[366658155,1750386640933,-688.59,0.00026076,2]
[366658156,1750386640945,-211.46,0.00026103,2]
[366658157,1750386640955,-150.0,0.00026105,4]
[366658158,1750386640964,-150.0,0.00026105,4]
[366658159,1750386640974,-150.0,0.00026105,4]
[366658160,1750386640984,-150.0,0.00026105,4]
[366658161,1750386640994,-150.0,0.0002615,4]
[366658162,1750386641004,-150.0,0.00026178,4]
[366658163,1750386641014,-150.0,0.00026186,4]
[366658164,1750386641024,-150.0,0.00026197,4]
[366658165,1750386641034,-221.31963355,0.00026211,2]
[366658166,1750386641045,-211.46,0.00026233,2]
[366658167,1750386641055,-300.0,0.00026234,2]
[366658168,1750386641064,-150.0,0.00026238,4]
[366658169,1750386641075,-150.0,0.0002625,4]
[366658170,1750386641097,-444.32,0.00026279,120]
[366658171,1750386641108,-2357.36737073,0.00026279,14]
[366658172,1750386641118,-200.65467623,0.00026295,2]
[366658173,1750386641128,-150.0,0.00026302,4]
[366658174,1750386641138,-150.0,0.00026302,4]
[366658175,1750386641148,-1000.0,0.0002631,2]
[366658176,1750386641159,-1919.06685147,0.00026311,2]
[366658177,1750386641174,-871.984808,0.00026311,2]
[366658178,1750386641186,-2186.35834053,0.00026311,2]
[366658179,1750386641196,-150.0,0.00026322,4]
[366658180,1750386641206,-150.0,0.00026327,4]
[366658181,1750386641217,-150.0,0.00026348,4]
[366658182,1750386641227,-150.0,0.0002638,4]
[366658183,1750386641237,-150.0,0.00026395,4]
[366658184,1750386641247,-150.0,0.00026416,4]
[366658185,1750386641258,-200.0,0.00026448,7]
[366658186,1750386641268,-150.0,0.00026467,4]
[366658187,1750386641279,-150.0,0.00026504,4]
[366658188,1750386641289,-150.0,0.0002651,4]
[366658189,1750386641299,-150.0,0.00026539,4]
[366658190,1750386641310,-150.0,0.00026563,4]
[366658191,1750386641320,-150.0,0.00026563,4]
[366658192,1750386641330,-150.0,0.00026563,4]
[366658193,1750386641340,-331.88770292,0.00026571,7]
[366658194,1750386641351,-168.0,0.00026576,2]
[366658195,1750386641361,-150.0,0.00026593,4]
[366658196,1750386641371,-150.0,0.00026612,4]
[366658197,1750386641382,-318.78161264,0.00026624,15]
[366658198,1750386641407,-2038.58575809,0.00026624,15]
[366658199,1750386641417,-150.0,0.00026671,4]
[366658200,1750386641427,-200.0,0.00026673,6]
[366658201,1750386641437,-150.0,0.00026682,4]
[366658202,1750386641448,-150.0,0.00026684,4]
[366658203,1750386641459,-150.0,0.00026694,4]
[366658204,1750386641469,-150.0,0.00026694,4]
[366658205,1750386641479,-151.0,0.00026709,2]
[366658206,1750386641489,-151.0,0.00026709,2]
[366658207,1750386641500,-152.72551967,0.00026709,2]
[366658208,1750386641510,-151.0,0.00026709,2]
[366658209,1750386641528,-1957.856,0.00026709,2]
[366658210,1750386641539,-151.0,0.00026709,2]
[366658211,1750386641550,-151.0,0.00026709,2]